bitfinex/quotes_ETHUSD_20240621
["timestamp","ask_amount","ask_price","bid_price","bid_amount"]
[1718962420460,1.19167,3508.9,3506.9,3.54376]
[1718962421155,0.64167,3508.9,3506.9,6.55776]
[1718962421360,0.0467,3509.0,3507.1,3.014]
[1718962426382,0.0467,3509.0,3507.0,2.82]
[1718962426593,0.0467,3508.3,3506.1,6.8948]
[1718962426889,0.40725749,3508.2,3505.7,3.3675]
[1718962427195,2.82,3507.9,3505.2,9.7148]
[1718962427345,0.28667,3507.8,3505.3,1.30823]
[1718962427680,0.55,3507.7,3505.3,1.30823]
[1718962428184,0.0467,3507.6,3505.1,3.3675]
[1718962428400,0.55,3507.5,3505.1,3.3675]
[1718962430846,0.0467,3507.4,3504.5,5.8977]
[1718962431040,0.90967,3507.3,3504.6,1.27925]
[1718962431241,0.90967,3507.3,3504.5,5.8977]
[1718962431899,0.90967,3507.3,3504.6,3.014]
[1718962432303,0.29760026,3507.2,3504.6,3.014]
[1718962432466,0.55,3507.1,3504.6,3.014]
[1718962432667,0.55,3507.1,3504.7,0.89117]
[1718962435774,0.0467,3507.0,3504.7,0.89117]
[1718962435982,0.55,3506.9,3504.7,0.89117]
[1718962441612,2.665,3506.9,3504.7,0.89117]
[1718962441814,3.0,3506.8,3504.7,0.89117]
[1718962441985,3.0,3506.8,3504.6,2.115]
[1718962441986,1.12117,3506.7,3504.8,0.608387]
[1718962442832,0.344193,3506.6,3504.8,0.608387]
[1718962442985,0.55,3506.5,3504.8,0.608387]
[1718962443887,0.0467,3507.2,3505.4,2.115]
[1718962444072,0.0467,3507.2,3505.5,0.2115]
[1718962446619,2.115,3506.9,3504.8,0.608387]
[1718962446967,0.45395749,3506.8,3504.8,0.608387]
[1718962447120,1.00395749,3506.8,3504.8,0.608387]
[1718962447321,4.00395749,3506.8,3504.8,0.608387]
[1718962447767,1.00395749,3506.8,3504.8,0.608387]
[1718962447922,0.40039575,3506.7,3504.8,0.608387]
[1718962448240,0.55,3506.6,3504.8,0.608387]
[1718962448451,0.55,3506.6,3504.9,0.02431178]
[1718962448674,0.55,3506.6,3504.8,0.608387]
[1718962450257,0.45575749,3506.5,3504.2,2.82]
[1718962450569,0.55,3506.4,3504.3,3.01]
[1718962451562,0.55,3506.4,3504.4,0.05705184]
[1718962451731,0.55,3506.4,3504.5,0.58870518]
[1718962451939,0.55,3506.4,3504.6,0.05705183]
[1718962452449,0.55,3506.4,3504.5,0.58870518]
[1718962452655,0.55,3506.4,3504.2,2.82]
[1718962453757,0.0485,3506.3,3503.9,6.0923]
[1718962453918,0.55,3506.4,3503.9,6.0923]
[1718962453919,0.0485,3506.1,3503.9,3.01]
[1718962454126,0.0485,3506.1,3503.7,2.82]
[1718962454344,0.55,3506.0,3503.8,0.282]
[1718962454672,0.84740766,3506.0,3503.8,0.282]
[1718962455160,1.39740766,3506.0,3503.8,0.282]
[1718962455363,0.0485,3505.9,3503.8,0.282]
[1718962455565,0.69459077,3505.8,3503.9,0.6112]
[1718962456782,0.0485,3505.7,3503.8,0.282]
[1718962456987,0.0485,3505.7,3503.4,3.01]
[1718962457156,0.55,3505.6,3503.4,3.01]
[1718962458196,0.55,3505.6,3503.2,4.7018]
[1718962458496,0.0485,3505.5,3502.9,2.82]
[1718962458641,0.0485,3505.5,3503.4,0.68948]
[1718962458842,0.55,3505.4,3503.4,0.68948]
[1718962459074,0.0485,3505.3,3503.4,0.68948]
[1718962459263,0.55,3505.2,3502.9,2.82]
[1718962459676,0.0485,3505.1,3502.7,3.01]
[1718962459986,0.55,3505.0,3502.7,3.01]
[1718962460145,0.55,3505.0,3502.8,0.41301181]
[1718962460346,0.55,3505.0,3502.8,3.42301181]
[1718962460567,0.55,3505.0,3502.8,6.24301181]
[1718962461781,0.0485,3505.1,3502.8,6.24301181]
[1718962461982,0.0485,3505.1,3503.3,5.83]
[1718962462199,0.0485,3505.1,3503.4,0.583]
[1718962463663,0.0485,3505.1,3503.0,5.83]
[1718962463985,0.0485,3505.1,3502.8,3.366]
[1718962464195,0.55,3505.0,3502.8,3.366]
[1718962466122,0.0485,3504.9,3502.8,0.356]
[1718962466271,0.0485,3504.7,3502.9,0.6186]
[1718962466879,0.55,3504.6,3502.2,2.82]
[1718962467074,0.0485,3504.5,3502.0,3.01]
[1718962467273,0.0485,3504.3,3502.0,3.01]
[1718962467501,0.0485,3504.3,3502.3,2.117]
[1718962471099,0.55,3504.2,3502.3,2.117]
[1718962471804,0.0485,3504.3,3502.4,5.127]
[1718962472013,0.0485,3504.3,3502.8,2.117]
[1718962472225,0.0485,3504.3,3502.9,0.05706566]
[1718962472506,0.0485,3504.3,3503.0,0.21740657]
[1718962472710,0.0485,3504.3,3503.1,0.0570624]
[1718962474133,0.0485,3504.3,3503.0,0.21740657]
[1718962474691,0.0485,3504.3,3502.8,2.117]
[1718962475389,0.55,3504.2,3502.8,2.117]
[1718962475981,0.0485,3504.1,3502.2,3.01]
[1718962476187,0.0485,3504.1,3502.4,2.117]
[1718962476497,0.0485,3504.1,3502.5,0.5127]
[1718962479431,0.0485,3504.1,3502.8,2.117]
[1718962480539,0.0543,3504.6,3502.8,5.127]
[1718962480752,0.0543,3504.6,3503.6,2.117]
[1718962481048,0.0543,3504.6,3503.7,0.2117]
[1718962482625,0.0543,3504.6,3503.6,2.117]
[1718962482626,0.0543,3504.6,3502.1,0.91739]
[1718962482947,0.32451803,3504.5,3502.2,2.117]
[1718962483106,2.117,3504.4,3502.2,2.117]
[1718962483301,5.117,3504.4,3502.1,0.91739]
[1718962483501,5.117,3504.4,3501.4,3.0932]
[1718962483720,5.117,3504.4,3501.9,3.01]
[1718962484339,2.117,3504.0,3501.9,3.01]
[1718962488412,3.0,3504.8,3502.5,3.01]
[1718962488616,2.117,3504.8,3502.7,3.01]
[1718962489232,2.117,3504.4,3502.7,3.01]
[1718962489444,2.117,3504.4,3502.6,0.301]
[1718962489710,2.117,3504.4,3501.9,5.117]
[1718962489945,2.117,3504.4,3501.9,3.0]
[1718962490362,2.117,3504.4,3501.9,2.117]
[1718962490650,3.0,3504.8,3502.3,3.01]
[1718962490879,2.117,3504.6,3502.5,3.01]
[1718962491167,2.117,3504.6,3502.6,3.58548685]
[1718962491168,0.2667,3504.5,3502.6,3.58548685]
[1718962494935,0.2667,3504.5,3502.6,3.5284078]
[1718962496648,0.2667,3504.5,3502.6,0.5184078]
[1718962496848,0.55,3504.4,3502.4,2.117]
[1718962497213,2.117,3504.2,3501.9,3.01]
[1718962497649,0.55,3504.1,3501.9,3.01]
[1718962497948,0.5667,3504.0,3502.0,3.5227]
[1718962498246,3.55,3504.1,3502.0,3.5227]
[1718962498612,2.117,3503.8,3502.0,3.5227]
[1718962498814,2.117,3503.8,3502.0,0.5127]
[1718962499013,2.117,3503.8,3501.4,2.117]
[1718962499014,0.55,3503.7,3501.4,2.117]
[1718962499462,3.55,3503.7,3501.4,2.117]
[1718962499662,0.55,3503.7,3501.4,2.117]
[1718962499845,3.55,3503.7,3501.5,3.01]
[1718962500553,0.28234424,3504.4,3501.9,6.3148]
[1718962500725,0.56387372,3504.5,3501.9,6.3148]
[1718962500726,0.29717372,3504.5,3502.8,3.01]
[1718962500913,2.117,3505.2,3503.0,3.01]
[1718962501120,0.29714689,3505.0,3503.0,3.01]
[1718962501346,0.24141469,3504.9,3503.1,0.63148]
[1718962502319,2.117,3504.8,3502.3,3.1655]
[1718962502632,2.117,3504.8,3502.8,3.01]
[1718962503841,3.24141469,3504.9,3502.8,3.01]
[1718962504181,2.667,3504.8,3502.8,3.01]
[1718962504367,3.0,3504.7,3502.8,3.01]
[1718962504552,3.56555616,3504.7,3502.9,0.301]
[1718962507248,0.56555616,3504.7,3502.9,0.301]
[1718962507443,3.0,3504.7,3502.9,0.301]
[1718962507659,2.117,3504.8,3502.9,0.1176]
[1718962509973,0.1135,3504.7,3502.9,0.1176]
[1718962515369,0.1135,3504.7,3503.0,3.2353]
[1718962517207,2.117,3504.4,3502.3,3.01]
[1718962517352,0.2667,3504.3,3502.4,3.85947]
[1718962517557,0.2667,3504.3,3502.6,6.3777]
[1718962518162,3.1135,3504.7,3502.6,6.3777]
[1718962518490,3.46945701,3504.7,3502.6,3.3677]
[1718962518688,0.55,3504.6,3502.6,3.3677]
[1718962521367,0.29719917,3504.8,3503.0,3.01]
[1718962521567,0.1135,3505.3,3503.4,3.01]
[1718962521899,1.143922,3506.3,3502.5,0.385947]
[1718962521900,0.1135,3505.9,3503.9,3.01]
[1718962522107,0.22305,3505.8,3504.0,0.89164927]
[1718962522285,0.1135,3505.9,3504.0,3.90164927]
[1718962523853,0.1135,3505.9,3504.0,3.84459]
[1718962525135,0.1135,3506.5,3504.2,3.01]
[1718962525260,0.1135,3506.5,3504.5,2.117]
[1718962525463,0.22305,3506.4,3504.6,6.6113]
[1718962525703,2.117,3506.9,3504.6,6.6113]
[1718962526373,0.99548514,3507.1,3504.9,2.117]
[1718962526581,0.75,3508.3,3504.9,2.117]
[1718962526582,0.35595701,3509.8,3506.7,2.117]
[1718962526793,0.35595701,3509.8,3506.4,6.1788]
[1718962526794,3.0,3508.8,3507.0,5.127]
[1718962527009,0.3,3508.7,3507.1,0.01800833]
[1718962527295,3.0,3509.2,3507.1,0.03899157]
[1718962527457,0.29716404,3509.2,3507.1,0.03899157]
[1718962527861,0.29716404,3509.2,3506.8,3.01]
[1718962528590,0.29716404,3509.2,3506.5,2.815]
[1718962528798,0.29716404,3509.2,3506.6,3.01]
[1718962529096,0.29716404,3509.2,3506.7,0.89938]
[1718962529462,0.55,3509.0,3506.7,0.89938]
[1718962530464,0.55,3509.0,3506.7,3.90938]
[1718962530665,0.55,3509.0,3506.8,0.01449457]
[1718962530897,0.55,3509.0,3506.8,0.05701334]
[1718962531200,0.29716404,3509.2,3506.9,3.40663933]
[1718962531412,0.26963997,3509.5,3507.0,5.88200782]
[1718962531700,0.56694081,3509.5,3507.0,5.88200782]
[1718962531902,0.56694081,3509.5,3507.1,0.04738142]
[1718962532089,0.56694081,3509.5,3507.2,0.05700456]
[1718962532408,0.56694081,3509.5,3507.3,0.10084304]
[1718962533411,0.29730084,3509.5,3507.4,3.1649]
[1718962533588,0.86424184,3509.5,3507.4,3.48577401]
[1718962533762,0.86424184,3509.5,3507.5,0.04384011]
[1718962533963,0.86424184,3509.5,3507.5,3.05384011]
[1718962534221,0.29730084,3509.5,3507.5,0.04384011]
[1718962535167,0.29730084,3509.5,3507.5,5.86884011]
[1718962535375,0.1135,3509.9,3507.6,0.93546141]
[1718962535682,0.1135,3509.9,3507.7,0.04225681]
[1718962535683,0.297301,3509.6,3507.7,0.04225681]
[1718962536008,0.297301,3509.6,3507.7,3.05225681]
[1718962536314,0.1135,3509.9,3507.7,3.05225681]
[1718962536535,0.41092299,3509.9,3508.0,2.815]
[1718962536838,0.1135,3509.9,3508.1,3.2915]
[1718962537101,0.1135,3509.9,3508.1,3.33375681]
[1718962537313,0.1135,3509.9,3508.1,0.32375681]
[1718962537471,0.1135,3509.9,3508.2,0.31387568]
[1718962537669,0.1135,3509.9,3508.2,3.32387568]
[1718962537867,0.1135,3510.5,3508.3,3.275]
[1718962538073,0.42485,3510.5,3508.4,0.65988757]
[1718962538580,0.1135,3510.5,3508.5,0.04225681]
[1718962538977,0.55,3510.4,3508.5,0.04225681]
[1718962539808,3.55,3510.4,3508.5,0.04225681]
[1718962541825,3.55,3510.4,3507.8,6.3776]
[1718962542025,3.55,3510.4,3507.9,0.04225681]
[1718962542202,0.67759,3510.3,3508.0,0.92348568]
[1718962542405,0.55,3510.2,3508.0,0.92348568]
[1718962542609,0.55,3510.2,3508.1,0.04225681]
[1718962543225,0.67759,3510.3,3508.2,5.825]
[1718962543732,0.1135,3510.5,3508.3,0.04225681]
[1718962544933,0.55,3510.4,3508.3,0.04225681]
[1718962546425,3.365,3510.4,3508.3,0.04225681]
[1718962546601,3.0,3510.3,3507.8,3.3676]
[1718962546798,0.55,3510.2,3507.9,0.04206008]
[1718962547139,0.6915,3510.1,3507.9,0.38302609]
[1718962547348,0.55,3510.0,3507.9,0.38302609]
[1718962547503,0.55,3510.0,3507.9,0.34096601]
[1718962547916,0.55,3510.0,3508.0,0.04206008]
[1718962548529,0.84743794,3510.0,3508.0,0.04206008]
[1718962548726,0.15389379,3509.9,3508.0,0.04206008]
[1718962548926,0.55,3509.8,3508.0,0.04206008]
[1718962549201,0.15389379,3509.9,3508.0,0.04206008]
[1718962549439,3.01668162,3509.9,3508.1,3.3471]
[1718962549644,0.01668162,3509.9,3508.3,2.11]
[1718962549808,0.27814225,3510.0,3508.4,0.5904273]
[1718962550008,3.0,3510.4,3508.4,0.5904273]
[1718962550312,2.2235,3510.5,3508.4,0.5904273]
[1718962550522,2.50338231,3510.5,3508.4,0.5904273]
[1718962550822,3.29740819,3510.4,3508.4,0.5904273]
[1718962551009,0.58007905,3510.3,3508.5,0.27004273]
[1718962551210,0.55,3510.2,3508.5,0.27004273]
[1718962551511,0.55,3510.2,3508.6,0.04065215]
[1718962552023,0.58007905,3510.3,3508.6,0.04065215]
[1718962552232,3.29740819,3510.4,3508.7,3.3617]
[1718962552233,0.63808696,3510.2,3508.7,3.3617]
[1718962552640,0.63808696,3510.2,3508.8,0.04065215]
[1718962553145,3.63808696,3510.2,3508.8,0.04065215]
[1718962553647,3.63808696,3510.2,3508.7,3.3617]
[1718962553853,0.60454952,3510.1,3508.8,0.04065215]
[1718962554052,3.0,3510.2,3508.8,0.04065215]
[1718962554222,0.29740819,3510.4,3508.7,3.3617]
[1718962554547,3.29740819,3510.4,3508.8,0.04065215]
[1718962555050,3.29740819,3510.4,3508.7,3.3617]
[1718962555213,0.63505655,3510.3,3508.8,0.04065215]
[1718962555724,0.55,3510.2,3508.7,3.3617]
[1718962555921,0.63505655,3510.3,3508.9,0.04065215]
[1718962556131,0.63505655,3510.3,3508.7,3.3617]
[1718962556319,3.63505655,3510.3,3508.7,3.3617]
[1718962556524,0.68721221,3510.2,3508.8,0.37682215]
[1718962556917,0.68721221,3510.2,3508.8,0.33617]
[1718962558254,0.68721221,3510.2,3508.9,0.04065215]
[1718962558413,0.27988231,3510.5,3508.9,0.04065215]
[1718962558615,2.11,3510.6,3508.9,0.04065215]
[1718962560162,5.11,3510.6,3508.9,0.04065215]
[1718962561363,5.11,3510.6,3507.8,3.3436]
[1718962561364,2.11,3509.8,3507.8,3.3436]
[1718962561506,0.211,3509.7,3507.8,4.36744]
[1718962561710,0.211,3509.7,3507.9,0.03897169]
[1718962562459,0.211,3509.7,3508.0,3.2367]
[1718962562654,3.0,3510.4,3508.3,3.01]
[1718962562952,0.0496775,3510.6,3508.7,3.2367]
[1718962563208,0.57578367,3510.7,3508.8,4.07237]
[1718962563466,0.27839648,3510.7,3508.9,3.44955524]
[1718962563784,0.1385,3511.4,3509.1,3.4129]
[1718962563937,0.22485,3511.3,3509.2,0.85695552]
[1718962564131,0.52216483,3511.3,3509.2,0.89329675]
[1718962565028,2.11,3511.1,3509.2,0.89329675]
[1718962565434,3.0,3511.2,3509.2,0.89329675]
[1718962565735,0.39329948,3511.1,3509.3,0.43061968]
[1718962566034,0.39329948,3511.1,3509.4,0.03634123]
[1718962566260,0.55,3511.0,3509.3,0.43061968]
[1718962566466,0.55,3511.0,3509.4,0.03634123]
[1718962566669,0.55,3511.0,3509.3,0.43061968]
[1718962566911,0.55,3511.0,3509.4,0.4206932]
[1718962567182,3.363,3511.0,3509.1,3.4129]
[1718962567537,3.0,3510.9,3509.1,3.4129]
[1718962567894,0.52216483,3511.3,3509.2,3.1009967]
[1718962568191,0.55,3511.2,3509.3,2.48014111]
[1718962568480,0.55,3511.2,3509.5,3.3823]
[1718962568694,0.29731483,3511.3,3509.7,3.3823]
[1718962568980,3.0,3512.4,3510.7,0.58447625]
[1718962569192,0.298004,3512.3,3510.9,3.87147625]
[1718962569339,0.298004,3512.3,3511.1,0.58447625]
[1718962569645,0.03234932,3512.3,3511.2,2.47942804]
[1718962569830,0.03234932,3512.3,3511.2,0.03634501]
[1718962570035,0.03234932,3512.3,3510.9,3.87147625]
[1718962570235,0.27878193,3512.5,3511.2,0.58447625]
[1718962570437,0.27878193,3512.5,3511.3,2.57167101]
[1718962570438,0.005,3512.5,3511.3,2.57167101]
[1718962570677,0.005,3512.5,3511.4,2.47875601]
[1718962570880,0.005,3512.5,3511.2,0.58500839]
[1718962571177,0.005,3512.5,3511.3,2.51451916]
[1718962571349,0.005,3512.5,3511.4,2.4788847]
[1718962571554,0.005,3512.5,3511.5,0.99155388]
[1718962571759,0.005,3512.5,3511.3,0.58500839]
[1718962571952,0.005,3512.5,3511.6,0.03563808]
[1718962572285,1.82247994,3514.7,3511.8,3.3388]
[1718962572436,5.28450348,3517.2,3515.0,0.75]
[1718962572437,2.24588783,3517.2,3515.0,0.75]
[1718962572741,7.39989383,3518.7,3515.8,2.79655108]
[1718962572943,4.1621774,3518.7,3515.9,11.355871]
[1718962573159,4.1621774,3518.7,3516.2,3.01]
[1718962573160,1.50331849,3518.7,3516.2,3.01]
[1718962573438,191.210325,3518.8,3516.6,0.58179465]
[1718962573663,191.210325,3518.8,3516.7,2.4747013]
[1718962573869,191.210325,3518.8,3517.1,2.813]
[1718962574081,191.210325,3518.8,3517.2,0.03248669]
[1718962574236,191.210325,3518.8,3517.3,3.4839]
[1718962574548,1.85794886,3517.5,3517.4,0.03247909]
[1718962574752,2.04374375,3517.5,3517.4,0.03247909]
[1718962574961,0.18579489,3517.5,3517.4,0.03247909]
[1718962575163,194.023325,3518.8,3516.5,0.05685221]
[1718962575349,191.210325,3518.8,3516.5,0.05685221]
[1718962575753,191.210325,3518.8,3516.6,0.03023135]
[1718962576968,191.210325,3518.8,3516.7,0.02277452]
[1718962577168,191.210325,3518.8,3516.7,0.55]
[1718962577545,191.210325,3518.8,3516.8,0.03023135]
[1718962578088,191.210325,3518.8,3516.5,0.55]
[1718962578245,191.210325,3518.8,3516.9,0.03023135]
[1718962578444,191.210325,3518.8,3516.5,0.95339]
[1718962578641,191.210325,3518.8,3516.6,0.03023135]
[1718962580243,3.0,3518.7,3516.6,0.03023135]
[1718962580657,3.0,3518.7,3516.7,0.05684799]
[1718962580855,3.0,3518.7,3516.8,0.05684795]
[1718962581054,3.0,3518.7,3516.9,0.03023135]
[1718962581377,3.0,3518.7,3517.0,0.05684471]
[1718962581545,3.0,3518.7,3516.9,0.03023135]
[1718962581745,3.0,3518.7,3516.8,0.55]
[1718962581945,3.0,3518.7,3517.0,0.03023135]
[1718962582240,3.0,3518.7,3517.1,0.0870088]
[1718962583266,3.0,3518.7,3517.1,0.03023135]
[1718962583581,3.0,3518.7,3516.7,0.44675214]
[1718962583766,3.0,3518.7,3516.8,0.55]
[1718962584073,5.77642813,3518.7,3516.8,0.55]
[1718962584243,2.77642813,3518.7,3516.8,0.55]
[1718962584444,191.210325,3518.8,3516.9,3.286]
[1718962584647,186.13794692,3518.8,3517.1,3.286]
[1718962584843,186.13794692,3518.8,3517.7,3.286]
[1718962584844,183.49932454,3518.8,3517.7,3.286]
[1718962585050,180.01042454,3518.8,3518.0,3.286]
[1718962585278,173.03262454,3518.8,3518.1,4.30142703]
[1718962585480,133.67692454,3518.8,3518.4,3.01]
[1718962585793,103.00420541,3518.8,3518.5,0.6482]
[1718962586081,103.00420541,3518.8,3518.1,0.6846]
[1718962586246,103.00420541,3518.8,3517.6,6.312]
[1718962586880,103.00420541,3518.8,3515.6,3.02556]
[1718962586881,103.00420541,3518.8,3516.8,3.472]
[1718962587379,0.05678398,3518.7,3516.7,0.44675214]
[1718962587546,0.05678398,3518.7,3515.7,3.472]
[1718962587747,0.05678398,3518.7,3515.8,2.857629]
[1718962587957,0.05678398,3518.7,3515.8,1.139629]
[1718962588160,0.05678398,3518.7,3515.9,3.01]
[1718962589151,102.46710273,3518.8,3516.0,0.02716177]
[1718962589350,2.77642813,3518.7,3516.1,0.41767908]
[1718962589556,2.77642813,3518.7,3516.2,0.02716022]
[1718962590688,1.72065848,3518.7,3516.2,0.02716022]
[1718962590890,102.46710273,3518.8,3516.4,3.01]
[1718962591190,102.46710273,3518.8,3516.6,3.01]
[1718962591411,102.46710273,3518.8,3516.5,2.268]
[1718962591412,102.46710273,3518.8,3516.8,3.01]
[1718962591907,102.46710273,3518.8,3516.9,3.56]
[1718962592100,102.46710273,3518.8,3516.5,0.55]
[1718962592311,2.77642813,3518.7,3516.6,0.43674839]
[1718962592602,2.77642813,3518.7,3516.7,0.55]
[1718962593009,2.77642813,3518.7,3516.8,3.01]
[1718962593177,2.77642813,3518.7,3517.0,3.01]
[1718962593500,2.77642813,3518.7,3517.2,3.01]
[1718962594305,102.46710273,3518.8,3517.2,3.01]
[1718962594505,105.67090273,3518.8,3516.9,3.01]
[1718962595380,105.67090273,3518.8,3517.0,3.02422707]
[1718962596081,105.67090273,3518.8,3517.0,3.01]
[1718962596397,2.77642813,3518.7,3517.0,3.01]
[1718962596610,2.77642813,3518.7,3516.7,3.01]
[1718962596963,2.77642813,3518.7,3516.8,0.04268183]
[1718962597845,2.77642813,3518.7,3516.7,3.01]
[1718962597846,3.0,3518.6,3516.7,3.01]
[1718962598017,2.77642813,3518.5,3516.7,3.01]
[1718962600415,3.07390657,3518.5,3516.7,3.01]
[1718962600755,2.77642813,3518.5,3516.7,3.01]
[1718962601027,3.0,3518.4,3516.7,3.01]
[1718962601697,3.0,3518.4,3515.9,3.01]
[1718962601918,0.57764281,3518.3,3516.1,3.01]
[1718962604131,2.8,3518.2,3516.1,3.01]
[1718962604423,3.0,3518.1,3516.1,3.01]
[1718962604824,3.0,3518.1,3516.2,0.02628947]
[1718962605129,0.63776428,3518.0,3516.4,3.01]
[1718962605336,0.29749111,3518.4,3516.4,3.01]
[1718962605561,102.46710273,3518.8,3516.6,3.01]
[1718962605842,102.46710273,3518.8,3516.8,3.01]
[1718962606045,2.8,3518.5,3516.6,3.01]
[1718962606200,102.46710273,3518.8,3516.7,0.301]
[1718962606201,7.5355,3518.4,3516.7,0.301]
[1718962606395,7.2555,3518.4,3516.7,0.301]
[1718962609027,7.2555,3518.4,3515.8,3.01]
[1718962609231,7.2555,3518.4,3516.0,3.01]
[1718962609536,7.2555,3518.4,3515.9,0.55]
[1718962609537,7.2555,3518.4,3516.2,3.01]
[1718962611512,7.2555,3518.4,3516.4,3.01]
[1718962611513,6.1996767,3518.4,3516.4,3.01]
[1718962611742,6.1996767,3518.4,3516.6,3.01]
[1718962613131,6.1996767,3518.4,3516.8,3.01]
[1718962614246,6.1996767,3518.4,3516.9,3.01]
[1718962615008,6.1996767,3518.4,3516.6,3.01]
[1718962615215,6.1996767,3518.4,3516.5,0.356]
[1718962615216,6.1996767,3518.4,3517.0,3.01]
[1718962615639,6.1996767,3518.4,3516.8,3.01]
[1718962616046,6.1996767,3518.4,3516.5,0.57557545]
[1718962616226,6.1996767,3518.4,3516.3,0.57557545]
[1718962616428,0.61996767,3518.3,3516.7,0.57557545]
[1718962616740,0.61996767,3518.3,3516.8,0.98994334]
[1718962616911,0.61996767,3518.3,3516.6,3.58557545]
[1718962617113,0.61996767,3518.3,3516.7,2.47496551]
[1718962617310,0.68196444,3518.2,3516.8,0.9899862]
[1718962617515,0.68196444,3518.2,3517.1,0.57557545]
[1718962617714,0.68196444,3518.2,3517.2,2.47498191]
[1718962617951,0.68816411,3518.1,3517.3,0.9899862]
[1718962618149,0.68816411,3518.1,3517.4,0.02602159]
[1718962618350,0.68816411,3518.1,3517.1,0.57557545]
[1718962618561,0.68816411,3518.1,3517.5,0.57557545]
[1718962618849,0.68816411,3518.1,3517.6,2.47501292]
[1718962619059,0.68816411,3518.1,3517.7,2.47495365]
[1718962619223,0.68816411,3518.1,3517.6,0.02602159]
[1718962619414,0.68816411,3518.1,3517.7,0.98999789]
[1718962619619,0.68816411,3518.1,3517.7,0.02602159]
[1718962620052,0.68816411,3518.1,3517.1,0.57557545]
[1718962620053,2.8,3517.9,3517.1,0.57557545]
[1718962620216,2.8,3517.9,3517.2,2.47527503]
[1718962620416,2.8,3517.9,3517.3,0.99014524]
[1718962620612,2.8,3517.9,3517.2,0.02516172]
[1718962620814,2.8,3517.9,3517.3,0.99008297]
[1718962621050,3.77848,3517.9,3517.3,0.02516172]
[1718962621349,3.77848,3517.9,3517.1,0.57557545]
[1718962621560,6.9848,3518.0,3517.2,2.50033538]
[1718962621715,6.9848,3518.0,3517.3,3.05074911]
[1718962621921,8.51478084,3518.7,3517.1,3.01]
[1718962622175,8.51478084,3518.7,3517.8,0.58367627]
[1718962622451,2.77642813,3518.6,3517.6,0.58367627]
[1718962622629,8.51478084,3518.7,3518.0,0.58367627]
[1718962622839,8.51478084,3518.7,3518.1,2.47473666]
[1718962623043,8.51478084,3518.7,3518.2,2.47460328]
[1718962623360,102.46710273,3518.8,3518.4,0.58367627]
[1718962623563,102.46710273,3518.8,3518.5,3.05819823]
[1718962623736,102.46710273,3518.8,3518.3,0.8755144]
[1718962623737,102.46710273,3518.8,3518.6,2.47452196]
[1718962623920,102.46710273,3518.8,3518.4,0.58367627]
[1718962624120,102.46710273,3518.8,3518.5,2.47431616]
[1718962624332,102.46710273,3518.8,3518.4,0.14591907]
[1718962624333,100.88386956,3518.8,3518.6,5.9125483]
[1718962624533,100.88386956,3518.8,3518.7,5.61815875]
[1718962624853,100.88386956,3518.8,3518.7,4.45272404]
[1718962625054,100.88386956,3518.8,3518.7,2.47368258]
[1718962625265,102.20817343,3518.8,3518.7,0.98947303]
[1718962625424,102.20817343,3518.8,3518.1,0.58254831]
[1718962625624,102.20817343,3518.8,3518.2,0.98962012]
[1718962625830,100.88386956,3518.8,3518.3,0.98962207]
[1718962626031,100.88386956,3518.8,3518.1,0.58254831]
[1718962626227,100.88386956,3518.8,3518.2,2.4741021]
[1718962626427,100.88386956,3518.8,3517.6,3.59254831]
[1718962626629,100.88386956,3518.8,3517.8,3.01]
[1718962626957,100.88386956,3518.8,3517.8,3.61667431]
[1718962627259,100.88386956,3518.8,3517.8,3.01]
[1718962627559,100.88386956,3518.8,3517.0,1.45679339]
[1718962627560,100.88386956,3518.8,3517.0,3.01]
[1718962627861,100.88386956,3518.8,3516.9,7.32534831]
[1718962627862,100.88386956,3518.8,3517.1,0.98975439]
[1718962628061,100.88386956,3518.8,3516.4,0.72644217]
[1718962628062,103.68386956,3518.8,3516.4,0.72644217]
[1718962628230,2.77642813,3518.7,3516.5,3.21722411]
[1718962628430,2.77642813,3518.7,3516.7,3.01]
[1718962628659,2.77642813,3518.7,3516.5,0.1600644]
[1718962628858,2.77642813,3518.7,3516.8,3.01]
[1718962629165,100.88386956,3518.8,3517.1,3.01]
[1718962632267,0.99995946,3518.7,3517.1,3.01]
[1718962632469,0.99995946,3518.7,3516.5,0.1600644]
[1718962633181,6.7588,3518.6,3516.1,3.01]
[1718962634032,6.7588,3518.6,3516.7,3.01]
[1718962634346,100.88386956,3518.8,3517.2,3.01]
[1718962634985,100.88386956,3518.8,3517.4,3.01]
[1718962635312,100.88386956,3518.8,3517.7,6.7529]
[1718962635519,100.88386956,3518.8,3518.2,3.01]
[1718962636001,100.88386956,3518.8,3518.4,3.01]
[1718962636159,100.88386956,3518.8,3518.3,0.55]
[1718962636160,100.88386956,3518.8,3518.6,3.01]
[1718962637642,100.88386956,3518.8,3518.5,0.356]
[1718962637932,100.88386956,3518.8,3518.5,3.01]
[1718962638087,100.88386956,3518.8,3517.7,7.0392]
[1718962638289,100.88386956,3518.8,3517.1,9.8685]
[1718962638738,100.88386956,3518.8,3517.2,3.01]
[1718962638888,100.88386956,3518.8,3517.4,3.01]
[1718962639716,100.88386956,3518.8,3517.7,3.01]
[1718962639902,100.88386956,3518.8,3518.2,3.01]
[1718962640232,100.88386956,3518.8,3518.4,3.01]
[1718962640393,100.88386956,3518.8,3518.6,3.01]
[1718962640735,100.88386956,3518.8,3518.6,10.2787]
[1718962641316,100.88386956,3518.8,3518.7,3.56]
[1718962642454,45.88436956,3518.8,3518.7,3.56]
[1718962642670,45.88436956,3518.8,3518.7,6.8463]